bitfinex-derivatives/quotes_BTCF0:USTF0_20250915
["timestamp","ask_amount","ask_price","bid_price","bid_amount"]
[1757938563532,1.18263231,115040.0,115030.0,0.03539]
[1757938563734,1.18263231,115040.0,115030.0,0.02261]
[1757938563933,0.40853643,115040.0,115030.0,0.02261]
[1757938564127,0.54329874,115040.0,115030.0,0.03539]
[1757938564328,0.38334,115040.0,115030.0,0.03539]
[1757938564831,0.38434,115040.0,115030.0,0.39619]
[1757938565034,0.04606891,115040.0,115030.0,0.74619]
[1757938565637,0.18283122,115040.0,115030.0,0.74619]
[1757938566029,0.67182891,115040.0,115020.0,0.37358]
[1757938566233,0.0355,115020.0,115010.0,0.39619]
[1757938566428,0.55358116,115020.0,115010.0,0.02261]
[1757938566625,0.0355,115010.0,115000.0,0.38539]
[1757938566829,0.05801885,115010.0,115000.0,0.38539]
[1757938567034,0.05801885,115010.0,115000.0,0.03539]
[1757938567528,0.19278116,115010.0,115000.0,0.38539]
[1757938567840,0.19278116,115010.0,115000.0,0.38639]
[1757938568531,1.53401495,115010.0,115000.0,0.001]
[1757938568931,0.76880315,115010.0,115000.0,0.001]
[1757938569135,0.51880315,115010.0,115000.0,0.001]
[1757938569442,1.28421495,115010.0,115000.0,0.02361]
[1757938569636,0.62225726,115010.0,115000.0,0.02361]
[1757938569938,1.41889726,115010.0,115000.0,0.02361]
[1757938570130,1.42185726,115010.0,115000.0,0.02261]
[1757938570436,0.62525726,115010.0,115000.0,0.02261]
[1757938570632,1.28713495,115010.0,115000.0,0.02261]
[1757938570936,1.42189726,115010.0,115000.0,0.02261]
[1757938571240,1.28813495,115010.0,115000.0,0.02261]
[1757938571432,1.28813495,115010.0,114980.0,0.37358]
[1757938571632,1.28813495,115010.0,114990.0,0.02261]
[1757938571633,0.3963,115000.0,114990.0,0.02261]
[1757938571833,0.41881885,115000.0,114990.0,0.38341]
[1757938572136,1.21573885,115000.0,114990.0,0.02261]
[1757938572336,0.41881885,115000.0,114990.0,0.02261]
[1757938572534,1.35046116,115000.0,114990.0,0.02261]
[1757938573037,1.35246116,115000.0,114990.0,0.02261]
[1757938574035,0.55558116,115000.0,114990.0,0.02261]
[1757938574236,1.35242116,115000.0,114990.0,0.02261]
[1757938574436,1.35342116,115000.0,114990.0,0.02261]
[1757938575140,1.21865885,115000.0,114990.0,0.03539]
[1757938575336,1.35342116,115000.0,114990.0,0.03539]
[1757938577545,0.55658116,115000.0,114990.0,0.03539]
[1757938577747,1.21881885,115000.0,114990.0,0.39619]
[1757938578045,0.42181885,115000.0,114990.0,0.39619]
[1757938578241,1.35358116,115000.0,114990.0,0.39619]
[1757938578546,1.35350116,115000.0,114990.0,0.39619]
[1757938578749,0.55658116,115000.0,114990.0,0.38341]
[1757938579044,1.35350116,115000.0,114990.0,0.38341]
[1757938579245,1.21873885,115000.0,114990.0,0.38341]
[1757938580241,1.21877885,115000.0,114990.0,0.38341]
[1757938580449,1.35338116,115000.0,114990.0,0.38341]
[1757938581642,0.42181885,115000.0,114990.0,0.38341]
[1757938581839,1.35326116,115000.0,114990.0,0.38341]
[1757938582653,0.42181885,115000.0,114990.0,0.02261]
[1757938582953,0.55658116,115000.0,114990.0,0.38341]
[1757938583147,1.35358116,115000.0,114990.0,0.38341]
[1757938583343,1.35358116,115000.0,114990.0,0.39619]
[1757938583551,1.35362116,115000.0,114990.0,0.39619]
[1757938584747,0.55658116,115000.0,114990.0,0.39619]
[1757938585053,1.35354116,115000.0,114990.0,0.39619]
[1757938585645,1.20577885,115000.0,114990.0,0.39619]
[1757938586053,1.34054116,115000.0,114990.0,0.39619]
[1757938586648,1.35339116,115000.0,114990.0,0.38341]
[1757938587050,1.35339116,115000.0,114990.0,0.39651]
[1757938588048,0.40885885,115000.0,114990.0,0.64651]
[1757938588254,0.003,115000.0,114990.0,1.02515647]
[1757938591557,0.7996,115000.0,114990.0,1.02515647]
[1757938591958,0.82218,115000.0,114990.0,0.66435647]
[1757938593355,0.95694231,115000.0,114990.0,0.41435647]
[1757938593554,1.353103,115000.0,114990.0,0.40125647]
[1757938594054,1.353103,115000.0,114990.0,0.41435647]
[1757938594559,0.40889069,115000.0,114990.0,0.41435647]
[1757938594755,0.84461069,115000.0,114990.0,0.41435647]
[1757938595255,0.979373,115000.0,114990.0,0.41435647]
[1757938596158,0.992223,115000.0,114990.0,0.41435647]
[1757938596760,0.84437069,115000.0,114990.0,0.41435647]
[1757938597861,0.84449069,115000.0,114990.0,0.41435647]
[1757938600163,0.04809069,115000.0,114990.0,0.41435647]
[1757938600462,0.82163069,115000.0,114990.0,0.66435647]
[1757938600665,0.84421069,115000.0,114990.0,0.66435647]
[1757938602666,0.84453069,115000.0,114990.0,0.66435647]
[1757938603162,0.02551069,115000.0,114990.0,1.02515647]
[1757938604457,0.41212,115020.0,115010.0,0.03467]
[1757938604658,0.45725053,115020.0,115010.0,0.39547]
[1757938605152,0.37037232,115020.0,115010.0,0.39547]
[1757938605766,0.37337232,115020.0,115010.0,0.39547]
[1757938605952,0.37537232,115020.0,115010.0,0.39547]
[1757938606262,0.05013053,115020.0,115010.0,0.39547]
[1757938606464,0.02755053,115020.0,115010.0,0.75627]
[1757938606664,0.003,115020.0,115010.0,0.75627]
[1757938606865,0.004,115020.0,115010.0,0.75627]
[1757938607066,0.02658,115020.0,115010.0,0.39547]
[1757938607265,0.04912054,115020.0,115010.0,0.75627]
[1757938607465,0.02658,115020.0,115010.0,0.75627]
[1757938608069,0.02358,115020.0,115010.0,0.75627]
[1757938610068,0.17119231,115020.0,115010.0,0.39547]
[1757938612669,0.17119231,115020.0,115010.0,0.03467]
[1757938612865,0.53199231,115020.0,115010.0,0.02157]
[1757938613068,0.55453229,115020.0,115010.0,0.38237]
[1757938613767,0.55453319,115020.0,115010.0,0.38237]
[1757938613967,1.20404088,115020.0,115010.0,0.39547]
[1757938616770,1.20372088,115020.0,115010.0,0.39547]
[1757938617875,0.40692088,115020.0,115010.0,0.39547]
[1757938618074,1.20360088,115020.0,115010.0,0.39547]
[1757938618376,1.20360088,115020.0,115010.0,0.53023231]
[1757938618778,0.40692088,115020.0,115010.0,0.53023231]
[1757938618974,1.20384088,115020.0,115010.0,0.39547]
[1757938620776,1.20384088,115020.0,115010.0,0.38237]
[1757938620777,1.21682088,115020.0,115010.0,0.38237]
[1757938620973,0.41990088,115020.0,115010.0,0.39542]
[1757938621168,1.20352088,115020.0,115010.0,0.39542]
[1757938621369,1.18098,115020.0,115010.0,0.39542]
[1757938621575,1.18098,115020.0,115010.0,0.53018231]
[1757938622476,1.18098,115020.0,115010.0,0.39542]
[1757938623476,0.02358,115020.0,115010.0,0.75622]
[1757938623684,0.81998,115020.0,115010.0,0.89098231]
[1757938623875,0.82006,115020.0,115010.0,0.89096411]
[1757938624075,1.31560411,115020.0,115010.0,0.53016411]
[1757938624382,0.9443674,115020.0,115010.0,0.54375358]
[1757938624874,0.93402339,115020.0,115010.0,0.54375358]
[1757938625882,0.13754339,115020.0,115010.0,0.54375358]
[1757938626182,0.76786716,115020.0,115010.0,0.54375358]
[1757938626380,0.78949716,115020.0,115010.0,0.54375358]
[1757938627284,0.78949716,115020.0,115010.0,0.54475358]
[1757938628385,0.78949716,115020.0,115010.0,0.54575358]
[1757938628681,0.78949716,115020.0,115010.0,0.41100947]
[1757938628982,0.78949716,115020.0,115010.0,0.54575358]
[1757938629183,0.92424127,115020.0,115010.0,0.41100947]
[1757938629600,0.92424127,115020.0,115010.0,0.54575358]
[1757938630099,0.95229411,115020.0,115010.0,0.54575358]
[1757938630402,0.15637411,115020.0,115010.0,0.54575358]
[1757938630798,0.95265411,115020.0,115010.0,0.41100947]
[1757938630993,0.95265411,115020.0,115010.0,0.54575358]
[1757938631390,0.97522205,115020.0,115010.0,0.54575358]
[1757938631591,1.73100616,115020.0,115010.0,0.01558947]
[1757938632802,1.73088616,115020.0,115010.0,0.04989947]
[1757938633398,1.72064616,115020.0,115010.0,0.04989947]
[1757938634499,0.92448616,115020.0,115010.0,0.04989947]
[1757938634702,0.65499794,115020.0,115010.0,0.04989947]
[1757938635008,0.97490205,115020.0,115010.0,0.54544358]
[1757938635206,0.04419794,115020.0,115010.0,0.54544358]
[1757938635510,1.33574205,115020.0,115010.0,0.54544358]
[1757938635803,1.33574205,115020.0,115010.0,0.41069947]
[1757938635999,1.33574205,115020.0,115010.0,0.54544358]
[1757938636201,1.33574205,115020.0,115010.0,0.41069947]
[1757938639102,1.33574205,115020.0,115010.0,0.54544358]
[1757938640512,1.33574205,115020.0,115010.0,0.41069947]
[1757938640810,1.33574205,115020.0,115010.0,0.54544358]
[1757938641414,1.33574205,115020.0,115010.0,0.41069947]
[1757938641612,1.33574205,115020.0,115010.0,0.54544358]
[1757938642715,1.33574205,115020.0,115010.0,0.18464358]
[1757938643014,1.33574205,115020.0,115010.0,0.54544358]
[1757938643807,1.33574205,115020.0,115010.0,0.5454447]
[1757938644713,1.47048616,115020.0,115010.0,0.5454447]
[1757938645107,0.40499794,115020.0,115010.0,0.5454447]
[1757938645412,0.02256794,115020.0,115010.0,0.7954447]
[1757938645606,0.81848794,115020.0,115010.0,0.7954447]
[1757938645806,0.02256794,115020.0,115010.0,0.7954447]
[1757938646317,0.04566794,115020.0,115010.0,0.7954447]
[1757938647611,0.02256794,115020.0,115010.0,0.7954447]
[1757938649311,0.02256794,115020.0,115010.0,1.1562447]
[1757938651319,1.31432411,115030.0,115020.0,0.03521]
[1757938651521,1.33680756,115030.0,115020.0,0.5443447]
[1757938652117,1.33680756,115030.0,115020.0,0.40960059]
[1757938652416,1.33680756,115030.0,115020.0,0.5443447]
[1757938652720,1.33680756,115030.0,115020.0,0.5453447]
[1757938654221,1.33680756,115030.0,115020.0,0.53175411]
[1757938655020,1.20206345,115030.0,115020.0,0.53175411]
[1757938655418,1.33680756,115030.0,115020.0,0.53175411]
[1757938657522,0.54112756,115030.0,115020.0,0.53175411]
[1757938658021,1.33648756,115030.0,115020.0,0.53175411]
[1757938659923,1.20174345,115030.0,115020.0,0.53175411]
[1757938660123,1.33648756,115030.0,115020.0,0.53175411]
[1757938660622,0.40638345,115030.0,115020.0,0.53175411]
[1757938660824,1.33616756,115030.0,115020.0,0.53175411]
[1757938662424,0.54112756,115030.0,115020.0,0.53175411]
[1757938662720,1.20126345,115030.0,115020.0,0.53175411]
[1757938662917,0.38328345,115030.0,115020.0,0.66649822]
[1757938663122,0.7948,115030.0,115020.0,0.91649822]
[1757938663711,0.49554411,115040.0,115030.0,0.01277]
[1757938663916,1.33592583,115040.0,115030.0,0.53075411]
[1757938664121,1.20118172,115040.0,115030.0,0.53075411]
[1757938664323,1.33592583,115040.0,115030.0,0.53075411]
[1757938665121,1.20118172,115040.0,115030.0,0.53075411]
[1757938665322,1.33692583,115040.0,115030.0,0.53075411]
[1757938666422,1.20218172,115040.0,115030.0,0.53075411]
[1757938666619,0.54212583,115040.0,115030.0,0.53075411]
[1757938666824,1.33664583,115040.0,115030.0,0.53075411]
[1757938667520,0.54212583,115040.0,115030.0,0.53075411]
[1757938667718,1.33664583,115040.0,115030.0,0.53075411]
[1757938667913,0.04658172,115040.0,115030.0,0.89155411]
[1757938668113,0.02348172,115040.0,115030.0,0.75681]
[1757938668423,0.02348172,115040.0,115030.0,0.89155411]
[1757938669325,0.001,115040.0,115030.0,0.89155411]
[1757938670426,0.001,115040.0,115030.0,0.53075411]
[1757938670926,0.0241,115040.0,115030.0,0.53075411]
[1757938672018,0.15884411,115040.0,115030.0,0.53075411]
[1757938672725,0.15884411,115040.0,115030.0,0.03521]
[1757938673022,0.0241,115040.0,115030.0,0.53075411]
[1757938673226,0.0241,115040.0,115030.0,0.39601]
[1757938673524,0.0241,115040.0,115030.0,0.53075411]
[1757938673725,0.0241,115040.0,115030.0,0.39601]
[1757938674020,0.15884411,115040.0,115030.0,0.53075411]
[1757938674224,0.65438822,115040.0,115030.0,0.39601]
[1757938674525,0.93958864,115040.0,115030.0,0.02244]
[1757938676830,0.93958864,115040.0,115020.0,0.03339612]
[1757938677028,0.52859411,115030.0,115020.0,0.0223]
[1757938677230,1.34526453,115030.0,115020.0,0.3831]
[1757938677528,1.34526453,115030.0,115020.0,0.39677]
[1757938677725,1.33502453,115030.0,115020.0,0.39677]
[1757938680028,1.33502453,115030.0,115020.0,0.39777]
[1757938680420,1.34526453,115030.0,115020.0,0.3841]
[1757938681433,1.33502453,115030.0,115020.0,0.39777]
[1757938683936,1.33503386,115030.0,115020.0,0.39777]
[1757938684735,0.54071386,115030.0,115020.0,0.39777]
[1757938684934,1.33503386,115030.0,115020.0,0.39777]
[1757938685228,0.54071386,115030.0,115020.0,0.39777]
[1757938685536,1.20028042,115030.0,115020.0,0.39777]
[1757938686126,1.20028042,115030.0,115020.0,0.53252344]
[1757938686830,0.04516042,115030.0,115020.0,0.53252344]
[1757938687026,0.02281,115030.0,115020.0,0.89332344]
[1757938688536,0.81713,115040.0,115030.0,0.01367]
[1757938688729,0.83948553,115040.0,115030.0,0.39677]
[1757938688929,0.83948553,115040.0,115030.0,0.03597]
[1757938689228,0.83948553,115040.0,115030.0,0.55199094]
[1757938689840,0.84048553,115040.0,115030.0,0.55199094]
[1757938690039,0.84048553,115040.0,115030.0,0.4172375]
[1757938690337,0.001,115040.0,115030.0,0.80199094]
[1757938690537,0.001,115040.0,115030.0,1.59631094]
[1757938691328,0.001,115040.0,115030.0,1.95711094]
[1757938694026,0.001,115040.0,115030.0,1.8223575]
[1757938694232,0.001,115040.0,115030.0,1.95711094]
[1757938696034,0.001,115040.0,115030.0,1.95763094]
[1757938696930,0.001,115040.0,115030.0,1.95771094]
[1757938697138,0.001,115040.0,115030.0,1.95831094]
[1757938698337,0.001,115040.0,115030.0,1.16279094]
[1757938698733,0.001,115040.0,115030.0,1.95835094]
[1757938699137,0.001,115040.0,115030.0,1.95963094]
[1757938699337,0.001,115040.0,115030.0,1.16279094]
[1757938699735,0.001,115040.0,115030.0,1.95959094]
[1757938699938,0.001,115040.0,115030.0,1.16279094]
[1757938700636,0.001,115040.0,115030.0,1.0280375]
[1757938700940,0.001,115040.0,115030.0,1.16279094]
[1757938702034,0.02381,115040.0,115030.0,0.4172375]
[1757938702335,0.79169154,115040.0,115030.0,0.0564375]
[1757938702833,0.80454154,115040.0,115030.0,0.0427675]
[1757938703034,0.80454154,115040.0,115030.0,0.0204675]
[1757938703329,0.80454154,115040.0,115010.0,0.01305]
[1757938703330,0.01024,115030.0,115010.0,0.01305]
[1757938703529,0.38361,115020.0,115010.0,0.03535]
[1757938703734,0.4059381,115020.0,115010.0,0.03535]
[1757938704239,0.47391297,115020.0,115010.0,0.03535]
[1757938705433,0.47391297,115020.0,115010.0,0.03635]
[1757938706837,0.47391297,115020.0,115010.0,0.03935]
[1757938707238,0.45158487,115020.0,115010.0,0.03935]
[1757938707742,0.45158487,115020.0,115010.0,0.40015]
[1757938707942,0.45158487,115020.0,115010.0,0.53490344]
[1757938711742,0.45158487,115020.0,115010.0,0.40015]
[1757938711944,0.45158487,115020.0,115010.0,0.53490344]
[1757938712336,0.09078487,115020.0,115010.0,0.53490344]
[1757938716056,0.06797487,115020.0,115010.0,0.53490344]
[1757938716346,0.02175,115030.0,115020.0,0.0351]
[1757938716548,0.02175,115030.0,115020.0,0.89145344]
[1757938716747,0.3608,115040.0,115020.0,0.89145344]
[1757938716937,0.38255,115040.0,115030.0,0.53065344]
[1757938717339,0.38255,115040.0,115030.0,0.16985344]
[1757938718848,0.38355,115040.0,115030.0,0.16985344]
[1757938720352,0.38355,115040.0,115030.0,0.53065344]
[1757938720738,0.38355,115040.0,115030.0,0.3959]
[1757938720943,0.38355,115040.0,115030.0,0.53065344]
[1757938729256,0.40591285,115040.0,115030.0,0.53065344]
[1757938730149,0.38416285,115040.0,115030.0,0.53065344]
[1757938730857,0.001,115040.0,115030.0,0.89145344]
[1757938731346,0.02337046,115040.0,115030.0,0.89145344]
[1757938732454,0.02337046,115040.0,115030.0,1.14145344]
[1757938732754,0.02337046,115040.0,115030.0,0.78065344]
[1757938732955,0.02337046,115040.0,115030.0,1.14145344]
[1757938733156,0.001,115040.0,115030.0,1.14145344]
[1757938734356,0.001,115040.0,115030.0,1.93909344]
[1757938735660,0.001,115040.0,115030.0,1.93889344]
[1757938736658,0.001,115040.0,115030.0,1.93877344]
[1757938736858,0.02337086,115040.0,115030.0,1.93877344]
[1757938737061,0.02337086,115040.0,115030.0,1.14145344]
[1757938737259,0.02337086,115040.0,115030.0,1.93869344]
[1757938737559,0.02337086,115040.0,115030.0,1.14145344]
[1757938737761,0.02337086,115040.0,115030.0,1.93865344]
[1757938738369,0.02337086,115040.0,115030.0,1.93861344]
[1757938738567,0.02337086,115040.0,115030.0,1.14145344]
[1757938738967,0.02337086,115040.0,115030.0,1.93857344]
[1757938740466,0.02337086,115040.0,115030.0,1.0067]
[1757938740767,0.02337086,115040.0,115030.0,1.93853344]
[1757938740964,0.02337086,115040.0,115030.0,1.14145344]
[1757938741265,0.8029043,115040.0,115020.0,0.03304508]
[1757938741470,0.51668344,115030.0,115020.0,0.03611]
[1757938741773,0.5390543,115030.0,115020.0,0.03611]
[1757938742064,0.5390543,115030.0,115020.0,0.53166344]
[1757938742065,0.40430086,115030.0,115020.0,0.53166344]
[1757938743169,0.40430086,115030.0,115020.0,0.53266344]
[1757938743770,0.02237086,115030.0,115020.0,1.02821688]
[1757938743970,0.39198295,115050.0,115020.0,1.02821688]
[1757938743971,0.38193,115050.0,115040.0,0.03611]
[1757938744172,0.4043191,115050.0,115040.0,0.03611]
[1757938745270,0.4063191,115050.0,115040.0,0.03611]
[1757938745875,0.54101379,115050.0,115040.0,0.17080469]
[1757938746575,0.54201379,115050.0,115040.0,0.03611]
[1757938746775,0.54201379,115050.0,115040.0,0.17080469]
[1757938747369,0.54201379,115050.0,115040.0,0.03611]
[1757938748375,0.55486379,115050.0,115040.0,0.02327]
[1757938748576,0.80486379,115050.0,115030.0,0.01284]
[1757938748776,0.51662469,115040.0,115030.0,0.15796469]
[1757938748976,0.53901379,115040.0,115030.0,0.17080469]
[1757938749673,0.53901379,115040.0,115030.0,0.53160469]
[1757938751477,0.53901379,115040.0,115030.0,0.39691]
[1757938751678,0.54001379,115040.0,115030.0,0.39691]
[1757938753181,0.54001379,115040.0,115030.0,0.53160469]
[1757938753680,0.4053191,115040.0,115030.0,0.38407]
[1757938753882,0.67470848,115040.0,115030.0,0.38407]
[1757938754080,0.54001379,115040.0,115030.0,0.38407]
[1757938755782,0.67470848,115040.0,115030.0,0.38407]
[1757938755980,0.54001379,115040.0,115030.0,0.39691]
[1757938756283,0.54001379,115040.0,115030.0,0.53160469]
[1757938756682,0.4053191,115040.0,115030.0,0.39691]
[1757938756883,0.54001379,115040.0,115030.0,0.38407]
[1757938757383,0.67470848,115040.0,115030.0,0.38407]
[1757938757783,0.4053191,115040.0,115030.0,0.38407]
[1757938757984,0.54001379,115040.0,115030.0,0.51876469]
[1757938760189,0.54001379,115040.0,115030.0,0.53160469]
[1757938762688,0.54001379,115040.0,115030.0,0.17080469]
[1757938763188,0.54001379,115040.0,115030.0,0.53160469]
[1757938763391,0.54001379,115040.0,115030.0,0.39691]
[1757938763588,0.54001379,115040.0,115030.0,0.53160469]
[1757938765484,0.54001379,115040.0,115030.0,0.39691]
[1757938766388,0.54001379,115040.0,115030.0,0.53160469]
[1757938766591,0.4053191,115040.0,115030.0,0.53160469]
[1757938766792,0.54001379,115040.0,115030.0,0.53160469]
[1757938770486,0.54001379,115040.0,115030.0,0.39691]
[1757938770689,0.54001379,115040.0,115030.0,0.53160469]
[1757938771892,0.03129,115030.0,115010.0,0.01305]
[1757938772097,0.15574469,115020.0,115010.0,0.03478]
[1757938772298,0.17813379,115020.0,115010.0,0.53027469]
[1757938773106,0.17813379,115020.0,115010.0,0.53127469]
[1757938773800,0.17813379,115020.0,115010.0,0.53027469]
[1757938774000,0.17813379,115020.0,115010.0,0.39658]
[1757938774803,0.17813379,115020.0,115010.0,0.39958]
[1757938775004,0.17813379,115020.0,115010.0,0.53427469]
[1757938775703,0.0434391,115020.0,115010.0,0.53427469]
[1757938777208,0.0223891,115020.0,115010.0,0.53427469]
[1757938777507,0.3831891,115030.0,115010.0,0.53427469]
[1757938777805,0.4042391,115030.0,115020.0,0.53104469]
[1757938778004,0.53893379,115030.0,115020.0,0.53104469]
[1757938781113,0.53893379,115030.0,115020.0,0.53204469]
[1757938781312,0.53893379,115030.0,115020.0,0.39735]
[1757938781910,0.4042391,115030.0,115020.0,0.39735]
[1757938782114,0.53893379,115030.0,115020.0,0.39735]
[1757938782508,0.53893379,115030.0,115020.0,0.53204469]
[1757938792716,0.53893379,115030.0,115020.0,0.17124469]
[1757938792914,0.53893379,115030.0,115020.0,0.53204469]
[1757938794313,0.4042391,115030.0,115020.0,0.53204469]
[1757938794527,0.4042391,115030.0,115020.0,0.66673938]
[1757938796518,0.53893379,115030.0,115020.0,0.53204469]
[1757938796918,0.53893379,115030.0,115020.0,1.32724469]
[1757938797821,0.53893379,115030.0,115020.0,0.53204469]
[1757938798020,0.53893379,115030.0,115020.0,1.32724469]
[1757938800422,0.53893379,115030.0,115020.0,0.53204469]
[1757938800720,0.53893379,115030.0,115020.0,1.32724469]
[1757938801315,0.53893379,115030.0,115020.0,0.53204469]
[1757938801817,0.53893379,115030.0,115020.0,0.39735]
[1757938805721,0.53899111,115030.0,115020.0,0.39735]
[1757938809431,0.4042391,115030.0,115020.0,0.39735]
[1757938809727,0.53899111,115030.0,115020.0,0.39735]
[1757938812623,0.4042391,115030.0,115020.0,0.39735]
[1757938812825,0.53899111,115030.0,115020.0,0.39735]
[1757938815330,0.4042391,115030.0,115020.0,0.41736071]
[1757938815928,0.4042391,115030.0,115020.0,0.55211272]
[1757938816128,0.4042391,115030.0,115020.0,0.41736071]
[1757938819633,0.53899111,115030.0,115020.0,0.40354071]
[1757938820327,0.53899111,115030.0,115020.0,0.41720071]
[1757938822836,0.53899111,115030.0,115020.0,0.05640071]
[1757938823137,0.53899111,115030.0,115020.0,0.41720071]
[1757938826634,1.33407111,115030.0,115020.0,0.41720071]
[1757938827030,0.4042391,115030.0,115020.0,0.41720071]
[1757938827332,1.33407111,115030.0,115020.0,0.41720071]
[1757938828740,1.33407111,115030.0,115020.0,0.001]
[1757938828741,1.58407111,115030.0,115020.0,0.001]
[1757938829038,0.01285,115010.0,115000.0,0.02030347]
[1757938829240,1.19121,115010.0,115000.0,0.02030347]
[1757938829445,1.2135991,115010.0,115000.0,0.02030347]
[1757938829637,1.34835111,115010.0,115000.0,0.02030347]
[1757938830034,1.95915111,115010.0,115000.0,0.02030347]
[1757938831040,0.02252,114980.0,114970.0,0.52016201]
[1757938831341,0.02252,115000.0,114990.0,0.03541]
[1757938831538,0.04482065,115000.0,114990.0,0.53096201]
[1757938831943,0.11396294,115000.0,114990.0,0.53096201]
[1757938832150,0.02152,115000.0,114990.0,0.53096201]
[1757938832553,1.16444,115010.0,115000.0,0.03541]
[1757938832750,1.18673451,115010.0,115000.0,0.53096201]
[1757938832949,1.18673451,115010.0,115000.0,0.39621]
[1757938833151,1.16444,115010.0,115000.0,0.39621]
[1757938833350,0.40561329,115010.0,115000.0,0.39621]
[1757938833749,0.40561329,115010.0,115000.0,0.39721]
[1757938835551,0.38332,115010.0,115000.0,0.39721]
[1757938836054,0.45184313,115010.0,115000.0,0.39721]
[1757938836251,0.06852313,115010.0,115000.0,0.78196201]
[1757938836456,0.3608,115020.0,115000.0,1.57708201]
[1757938836654,0.38332,115020.0,115010.0,0.53096201]
[1757938837157,0.38332,115020.0,115010.0,0.39621]
[1757938837657,0.02252,115020.0,115010.0,0.39621]
[1757938837849,0.04480966,115020.0,115010.0,0.53096201]
[1757938838045,0.02252,115020.0,115010.0,0.53096201]
[1757938839153,0.02352,115020.0,115010.0,0.53096201]
[1757938840060,0.02452,115020.0,115010.0,0.53096201]
[1757938840453,0.0948378,115020.0,115010.0,0.53096201]
[1757938840653,0.02452,115020.0,115010.0,0.53096201]
[1757938841349,0.002,115020.0,115010.0,0.53096201]
[1757938841553,0.002,115020.0,115010.0,1.16228246]
[1757938842258,0.002,115020.0,115010.0,1.42888246]
[1757938842458,0.002,115020.0,115010.0,2.22396246]
[1757938843562,0.002,115020.0,115010.0,1.42888246]
[1757938843863,0.002,115020.0,115010.0,2.22392246]
[1757938844056,0.002,115020.0,115010.0,1.42888246]
[1757938844259,0.002,115020.0,115010.0,2.22392246]
[1757938845157,0.002,115020.0,115010.0,1.42888246]
[1757938845357,0.002,115020.0,115010.0,2.22392246]
[1757938845752,0.002,115020.0,115010.0,1.42888246]
[1757938845953,0.002,115020.0,115010.0,2.22392246]
[1757938846564,0.002,115020.0,115010.0,2.22388246]
[1757938846761,0.002,115020.0,115010.0,1.42888246]
[1757938847062,0.002,115020.0,115010.0,2.22388246]
[1757938848067,0.002,115020.0,115010.0,1.42888246]
[1757938849461,0.002,115020.0,115010.0,2.22388246]
[1757938849662,0.002,115020.0,115010.0,1.42888246]
[1757938850063,0.002,115020.0,115010.0,2.22384246]
[1757938852665,0.002,115020.0,115010.0,1.86304246]
[1757938853067,0.002,115020.0,115010.0,2.22384246]
[1757938867773,0.13673605,115020.0,115010.0,1.83889045]
[1757938867971,0.13673605,115020.0,115010.0,1.9736265]
[1757938869582,0.13673605,115020.0,115010.0,1.1788665]
[1757938869776,0.13673605,115020.0,115010.0,1.9735865]
[1757938871379,0.13673605,115020.0,115010.0,1.7069865]
[1757938871680,0.15930976,115020.0,115010.0,1.7069865]
[1757938871977,0.15930976,115020.0,115010.0,1.57225045]
[1757938872177,0.02457371,115020.0,115010.0,1.57225045]
[1757938872382,0.15930976,115020.0,115010.0,1.7069865]
[1757938873184,0.42950587,115030.0,115010.0,1.3461865]
[1757938873484,0.38529168,115030.0,115020.0,0.16940605]
[1757938874481,0.52002773,115030.0,115020.0,0.16940605]
[1757938875582,0.52202773,115030.0,115020.0,0.16940605]
[1757938876582,0.38729168,115030.0,115020.0,0.16940605]
[1757938876783,0.52202773,115030.0,115020.0,0.16940605]
[1757938876979,0.52194211,115030.0,115020.0,0.16940605]
[1757938878088,0.52094211,115030.0,115020.0,0.16940605]
[1757938879285,0.51994211,115030.0,115020.0,0.16940605]
[1757938885190,0.54238513,115030.0,115020.0,0.16940605]
[1757938888294,0.54238382,115030.0,115020.0,0.16940605]
[1757938889193,0.54238382,115030.0,115020.0,0.03467]
[1757938889388,0.54238382,115030.0,115020.0,0.16940605]
[1757938889591,0.40764777,115030.0,115020.0,0.16940605]
[1757938889792,0.40764777,115030.0,115020.0,0.3041421]
[1757938889991,0.54238382,115030.0,115020.0,0.3041421]
[1757938891193,0.40764777,115030.0,115020.0,0.3041421]
[1757938892096,0.54238382,115030.0,115020.0,0.3041421]
[1757938892992,0.54238382,115030.0,115020.0,0.16940605]
[1757938893789,1.33690382,115030.0,115020.0,0.16940605]
[1757938893989,1.20216777,115030.0,115020.0,0.16940605]
[1757938894192,1.33690382,115030.0,115020.0,0.16940605]
[1757938895800,0.54238382,115030.0,115020.0,0.16940605]
[1757938896000,1.33690382,115030.0,115020.0,0.16940605]
[1757938896200,0.54238382,115030.0,115020.0,0.16940605]
[1757938896499,1.33686382,115030.0,115020.0,0.3041421]
[1757938896701,0.54238382,115030.0,115020.0,0.3041421]
[1757938896902,1.33686382,115030.0,115020.0,0.3041421]
[1757938897600,1.33686382,115030.0,115020.0,0.16940605]
[1757938902703,1.33678382,115030.0,115020.0,0.16940605]
[1757938902897,1.33678382,115030.0,115020.0,0.03467]
[1757938903205,1.59963382,115030.0,115010.0,0.1679465]
[1757938903400,0.6632421,115020.0,115010.0,0.05563045]
[1757938903600,0.68568381,115020.0,115010.0,0.05563045]
[1757938904506,0.68568381,115020.0,115010.0,0.05763045]
[1757938905006,0.53909776,115020.0,115010.0,0.1913665]
[1757938905307,1.33345776,115020.0,115010.0,0.1923665]
[1757938905804,0.53909451,115020.0,115010.0,0.1923665]
[1757938906006,1.33345451,115020.0,115010.0,0.1923665]
[1757938907908,0.40435846,115020.0,115010.0,0.1923665]
[1757938908106,1.19871846,115020.0,115010.0,0.1923665]
[1757938908908,0.40435846,115020.0,115010.0,0.1923665]
[1757938909111,1.19871846,115020.0,115010.0,0.1923665]
[1757938909609,1.19871846,115020.0,115010.0,0.05763045]
[1757938909796,0.40435846,115020.0,115010.0,0.1923665]
[1757938909996,0.53909451,115020.0,115010.0,0.1923665]
[1757938910201,1.33341451,115020.0,115010.0,0.1923665]
[1757938913806,0.53909451,115020.0,115010.0,0.1923665]
[1757938914006,1.33341451,115020.0,115010.0,0.1923665]
[1757938914313,0.53909451,115020.0,115010.0,0.1923665]
[1757938914513,1.33337451,115020.0,115010.0,0.1923665]
[1757938915410,0.53909451,115020.0,115010.0,0.1923665]
[1757938915608,0.40435846,115020.0,115010.0,0.1923665]
[1757938915816,0.02243846,115020.0,115010.0,1.73218255]
[1757938920007,0.00186606,115030.0,115010.0,1.73218255]
[1757938920218,0.04391097,115030.0,115020.0,0.3042721]
[1757938920612,0.02243097,115030.0,115020.0,0.3042721]
[1757938920920,0.02243097,115030.0,115020.0,0.6650721]